Cogmind - Beta 16 @@@ ROGUE MODE // 2025.11.02 @ 22:05:31 Player: Playing with my Cog Result: Destroyed by G-50 Soldier with Heavy Laser Performance ------------- Evolutions (4) 2000 Regions Visited (11) 2200 Robots Destroyed (66) 330 Value Destroyed (1155) 1155 Prototype IDs (42) 840 Alien Tech Used (0) 0 Bonus (300) 300 TOTAL SCORE: 6825 Bonus ------- Aligned with FarCom 300 Cogmind --------- Core Integrity 0/850 Matter 231/300 Energy 100/100 System Corruption 2% Temperature Cool (9) Movement Core (50) Location -6/Factory Parts ------- > --- POWER (2) -------- (None) > --- PROPULSION (7) --- (None) > --- UTILITY (4) ------ Hacking Suite > --- WEAPON (2) ------- (None) > --- INVENTORY (5) ---- Improved Deuterium Engine Light Fission Core System Restoration Module Chronowheel Minigun Peak State ------------ > --- POWER ------------ Improved Deuterium Engine > --- PROPULSION ------- Aerolev Unit Flight Unit Flight Unit Flight Unit Cesium-ion Thruster Improved VTOL Module Cooled VTOL Module > --- UTILITY ---------- Small Storage Unit Hacking Suite Corruption Screen > --- WEAPON ----------- Advanced Datajack Spear > --- INVENTORY -------- Improved Deuterium Engine ECM Suite Hacking Suite System Shield System Shield Chronowheel Minigun Improved Grenade Launcher [Rating: 45] Favorites ----------- Power Improved Deuterium Engine Engine Improved Deuterium Engine Power Core Micro Nuclear Core Propulsion Flight Unit Treads Light Treads Leg Aluminum Leg Hover Unit Aerolev Unit Flight Unit Flight Unit Utility Hacking Suite Device ECM Suite Storage Small Storage Unit Processor Corruption Screen Hackware Hacking Suite Protection Light Armor Plating Weapon Assault Rifle Energy Gun Medium Laser Ballistic Gun Assault Rifle Launcher Grenade Launcher Impact Weapon Heavy Flail Piercing Weapon Spear Special Melee Weapon Advanced Datajack Build | -11 -10 -10 -9 -9 -9 -8 -8 -7 -7 -7 -6 ------- Run | Yrd Mat Min Mat Min Exi Min Mat Fac Was Fac Fac Slots Evolved 8 | . . . 2 . . . 2 2 . . 2 Power 1 | . . . . . . . . . . . 1 Propulsion 5 | . . . 1 . . . 2 2 . . . Utility 2 | . . . 1 . . . . . . . 1 Weapon . | . . . . . . . . . . . . Parts Attached 64 | 7 9 . 7 2 1 2 15 4 1 11 5 Power 11 | 1 2 . 1 1 . . 1 2 . 1 2 Engine 9 | 1 2 . 1 1 . . 1 1 . 1 1 Core 2 | . . . . . . . . 1 . . 1 Reactor . | . . . . . . . . . . . . Propulsion 21 | 2 3 . 3 . . 1 7 1 . 3 1 Treads 2 | 2 . . . . . . . . . . . Leg 7 | . 3 . 3 . . 1 . . . . . Wheel . | . . . . . . . . . . . . Hover 3 | . . . . . . . . . . 2 1 Flight 9 | . . . . . . . 7 1 . 1 . Utility 16 | 1 2 . 1 1 . . 3 1 . 5 2 Device 8 | . . . . 1 . . 2 1 . 2 2 Storage 3 | 1 1 . . . . . . . . 1 . Processor 1 | . . . . . . . . . . 1 . Hackware 2 | . . . . . . . 1 . . 1 . Protection 2 | . 1 . 1 . . . . . . . . Artifact . | . . . . . . . . . . . . Weapon 16 | 3 2 . 2 . 1 1 4 . 1 2 . Energy Gun 1 | 1 . . . . . . . . . . . Energy Cannon . | . . . . . . . . . . . . Ballistic Gun 7 | 2 1 . 2 . . . 2 . . . . Ballistic Cannon . | . . . . . . . . . . . . Launcher 3 | . 1 . . . . 1 . . . 1 . Special Weapon . | . . . . . . . . . . . . Impact Weapon 1 | . . . . . . . 1 . . . . Slashing Weapon . | . . . . . . . . . . . . Piercing Weapon 1 | . . . . . . . . . . 1 . Special Melee Weapon 3 | . . . . . 1 . 1 . 1 . . Unidentified Prototypes 5 | . . . 1 1 . . 1 . . 2 . Parts Lost 35 | . 5 1 5 1 . 4 . 1 3 6 9 Power 6 | . 2 . 2 . . . . . . 1 1 Propulsion 16 | . 1 . 2 . . 2 . 1 2 4 4 Utility 3 | . 1 . . . . . . . . . 2 Weapon 10 | . 1 1 1 1 . 2 . . 1 1 2 Highest Loss Streak 9 | . 3 1 3 1 . 4 . 1 3 6 9 To Critical Strikes . | . . . . . . . . . . . . Average Backups 9 | 2 12 15 13 14 14 14 8 7 7 7 4 Power . | . . . . . . . . . . . 1 Propulsion 2 | 1 4 6 5 5 6 6 2 . . . . Utility 3 | . 3 4 4 5 5 5 2 4 5 3 1 Weapon 2 | . 2 4 2 2 3 2 1 1 1 1 1 Tool/Special . | . . . . . . . . . . . . Unused Backups 13 | . 2 . . . . . 4 1 . 3 3 Power 2 | . 1 . . . . . . . . . 1 Propulsion 3 | . 1 . . . . . 2 . . . . Utility 6 | . . . . . . . 1 1 . 3 1 Weapon 1 | . . . . . . . 1 . . . . Tool/Special 1 | . . . . . . . . . . . 1 Average Slot Usage (%) 87 | . 91 85 76 70 86 68 97 95 97 93 56 Engine 8 | . 12 14 9 9 11 11 9 4 7 6 2 Treads 2 | . 9 . . . . . . . . . . Leg 11 | . 17 28 33 33 33 23 . . . . . Hover 2 | . . . . . . . . . . 6 11 Flight 21 | . . . . . . . 43 49 51 41 11 Device 4 | . . . . 4 11 11 8 7 7 4 8 Storage 9 | . 14 14 11 11 11 11 9 7 7 6 . Hackware 3 | . . . . . . . 8 7 7 7 6 Protection 2 | . 8 . 3 . . . . . . . . Ballistic Gun 8 | . 25 28 14 1 . . 2 . . . . Launcher 2 | . 1 . . 11 11 11 1 . 6 . . Impact Weapon 1 | . . . . . . . 5 7 7 1 . Piercing Weapon 1 | . . . . . . . . . . 5 5 Special Melee Weapon 3 | . . . . . 9 1 7 6 . 6 5 Peak Build Rating 45 | 6 8 7 11 16 18 18 27 31 32 45 43 Average Rating 22 | 4 7 7 9 11 17 15 23 29 28 39 34 On Entrance 15 | . 6 7 6 9 16 18 16 27 29 25 23 Avg Prop Armor Cover (%) 6 | . . . . . . . 1 4 6 9 11 Naked Turns . | . . . . . . . . . . . . Heaviest Build 32 | 14 32 26 32 27 28 27 16 23 23 23 16 Greatest Support 40 | 40 40 20 30 30 30 20 21 25 35 33 18 Greatest Overweight (x) 6 | 1 6 1 1 . . 1 . . 1 2 1 Average Overweight (x) . | . . 1 . . . 1 . . . . . Largest Inventory Capacity 15 | 8 15 15 15 15 15 15 15 8 8 8 5 Average Capacity 10 | 7 14 15 15 15 15 15 8 8 8 7 5 Most Carried 15 | 4 15 15 15 15 15 15 15 8 8 8 5 Average Carried 9 | 2 12 15 13 14 14 14 8 7 7 7 4 Final Capacity 15 | 8 15 15 15 15 15 15 8 8 8 5 5 Final Carried 15 | 4 15 15 12 15 15 15 8 8 8 5 5 Class Distribution -------------------- 44% | Scavenger-Sprinter 39% | Mutant 13% | Scavenger-Mutant Dominant Class ---------------- Mutant | -10/Materials Mutant | -10/Mines Mutant | -9/Materials Scavenger-Mutant | -9/Mines Scavenger-Mutant | -9/Exiles Mutant | -8/Mines Scavenger-Sprinter | -8/Materials Scavenger-Sprinter | -7/Factory Scavenger-Sprinter | -7/Waste Scavenger-Sprinter | -7/Factory Mutant | -6/Factory Resources | -11 -10 -10 -9 -9 -9 -8 -8 -7 -7 -7 -6 ----------- Run | Yrd Mat Min Mat Min Exi Min Mat Fac Was Fac Fac Matter Collected 1766 | 194 629 . 181 62 . . 107 271 . 264 58 Remotely . | . . . . . . . . . . . . Salvage Created 1493 | . 505 . 242 33 . 18 107 152 . 378 58 Parts 100 | . 45 . 12 8 . 6 3 . . 22 4 Haulers Intercepted 2 | . . . . . . . . 1 . 1 . Recyclers Shooed 1 | . . . 1 . . . . . . . . Parts Field Recycled . | . . . . . . . . . . . . Retrieved Matter . | . . . . . . . . . . . . Parts Self-Destructed . | . . . . . . . . . . . . Prevented . | . . . . . . . . . . . . Parts Restored . | . . . . . . . . . . . . Kills | -11 -10 -10 -9 -9 -9 -8 -8 -7 -7 -7 -6 ------- Run | Yrd Mat Min Mat Min Exi Min Mat Fac Was Fac Fac Combat Hostiles Destroyed 39 | . 16 . 8 4 . 6 . . . 5 . Melee 1 | . . . . . . . . . . 1 . Guns 17 | . 13 . 4 . . . . . . . . AOE 21 | . 3 . 4 4 . 6 . . . 4 . Classes Destroyed 13 | . 6 . 1 . . . 1 1 . 4 . Worker 6 | . 1 . . . . . 1 1 . 2 1 Builder 4 | . 1 . . . . . 1 . . 1 1 Tunneler 2 | . . . . . . . . . . 1 1 Hauler 2 | . . . . . . . . 1 . 1 . Recycler 2 | . . . . . . . 1 1 . . . Operator 5 | . 3 . 1 . . . 1 . . . . Drone 1 | . . . . . . . . . . 1 . Watcher 7 | . 1 . 1 . . . . 1 . 4 . Swarmer 23 | . 9 . 4 4 . 6 . . . . . Grunt 12 | . 7 . 3 . . . . . . 2 . Brawler 1 | . . . . . . . . . . 1 . Sentry 1 | . . . 1 . . . . . . . . Hunter 1 | . . . . . . . . . . 1 . Best Kill Streak 6 | . 4 . 4 4 . 6 2 1 . 3 1 Combat Bots Only 6 | . 4 . 4 4 . 6 . . . 3 . Max Kills in Single Turn 3 | . 1 . 3 3 . 2 1 1 . 3 1 Gunslinging . | . . . . . . . . . . . . Exploded 3 | . 1 . 3 3 . 2 . . . 3 . Melee 1 | . . . . . . . . . . 1 . Uniques/NPCs Destroyed . | . . . . . . . . . . . . Combat | -11 -10 -10 -9 -9 -9 -8 -8 -7 -7 -7 -6 -------- Run | Yrd Mat Min Mat Min Exi Min Mat Fac Was Fac Fac Hostile Shots Fired 394 | . 121 10 57 4 . 15 12 12 2 74 87 Missed 134 | . 33 2 17 . . 5 5 9 . 46 17 Hits 260 | . 88 8 40 4 . 10 7 3 2 28 70 Melee 8 | . . . 5 . . . . 1 2 . . Projectile 252 | . 88 8 35 4 . 10 7 2 . 28 70 Critical Strikes 11 | . . 1 2 . . . . 1 1 1 5 Damage Taken 3770 | . 951 107 577 32 . 197 115 52 84 447 1208 Core 1311 | . 141 40 36 . . 78 . 14 59 93 850 Absorbed by Shields 74 | . . . . . . . . . . 38 36 Regen/Repaired (Parts) 106 | . . . . . . . . 23 . 83 . Core Remaining (%) 74 | 100 . 27 . . . 71 100 . . 76 . Volleys Fired 108 | . 55 . 42 2 . 7 . . . 2 . Largest 2 | . 2 . 2 1 . 1 . . . 1 . Hottest 70 | . 40 . 70 30 . 30 . . . 36 . Shots Fired 195 | . 105 . 79 2 . 7 . . . 2 . Gun 176 | . 101 . 75 . . . . . . . . Cannon . | . . . . . . . . . . . . Launcher 19 | . 4 . 4 2 . 7 . . . 2 . Special . | . . . . . . . . . . . . Kinetic 170 | . 101 . 69 . . . . . . . . Thermal 6 | . . . 6 . . . . . . . . Explosive 19 | . 4 . 4 2 . 7 . . . 2 . Electromagnetic . | . . . . . . . . . . . . Robot Hit Streak 19 | . 16 . 19 5 . 1 . . . . . Robot Miss Streak 3 | . 3 . 3 . . 2 . . . . . Penetration Max . | . . . . . . . . . . . . Secondary Targets 1 | . 1 . . . . . . . . . . Max Gunslinging Chain 1 | . 1 . . . . . . . . . . Shots Hit Robots 170 | . 74 . 57 1 5 3 4 6 . 17 3 Core Hits 75 | . 33 . 15 4 . 6 1 . . 15 1 Critical Kills . | . . . . . . . . . . . . Critical Parts Destroyed 1 | . . . . . . . 1 . . . . Critical Strikes 3 | . . . . . . . 1 . . 2 . Smash 1 | . . . . . . . 1 . . . . Impale 2 | . . . . . . . . . . 2 . Melee Attacks 133 | . . . . . 5 . 23 32 . 54 19 Impact 57 | . . . . . . . 23 32 . 2 . Slashing . | . . . . . . . . . . . . Piercing 71 | . . . . . . . . . . 52 19 Sneak Attacks 23 | . . . . . 5 . 4 4 . 7 3 Combat Hostiles 1 | . . . . . . . . . . 1 . Follow-up Attacks . | . . . . . . . . . . . . Damage Inflicted 5212 | . 1100 . 788 194 . 417 369 586 . 1606 152 Guns 1502 | . 893 . 609 . . . . . . . . Cannons . | . . . . . . . . . . . . Explosions 1756 | . 207 . 179 194 . 417 . . . 759 . Melee 1954 | . . . . . . . 369 586 . 847 152 Ramming . | . . . . . . . . . . . . Kinetic 1427 | . 893 . 534 . . . . . . . . Thermal 375 | . . . 75 . . . . . . 300 . Explosive 1456 | . 207 . 179 194 . 417 . . . 459 . Electromagnetic . | . . . . . . . . . . . . Impact 1005 | . . . . . . . 369 586 . 50 . Slashing . | . . . . . . . . . . . . Piercing 949 | . . . . . . . . . . 797 152 Highest Corruption 4 | . 4 4 . . . . . 3 3 3 2 Average Corruption 2 | . 3 4 . . . . . 3 3 1 1 Corruption Purged 3 | . . . . . . . . . . 3 . Corruption Blocked . | . . . . . . . . . . . . Effects 37 | . 14 . . . . . . 9 2 11 1 Message Errors 5 | . 2 . . . . . . 2 . 1 . Matter Fused 15 | . 7 . . . . . . 2 1 4 1 Heat Flow Errors 8 | . 1 . . . . . . 2 1 4 . Energy Discharges 5 | . 2 . . . . . . 2 . 1 . Data Loss (minor) 1 | . . . . . . . . . . 1 . Data Loss (major) 2 | . 1 . . . . . . 1 . . . Alerts 1 | . 1 . . . . . . . . . . Overload Shots . | . . . . . . . . . . . . Overflow Damage 918 | . . . 9 . . 20 227 369 . 259 34 Projectiles . | . . . . . . . . . . . . Explosions 130 | . . . 9 . . 20 . . . 101 . Melee 788 | . . . . . . . 227 369 . 158 34 Knockbacks 5 | . . . . . . . 2 2 . 1 . Impact 5 | . . . . . . . 2 2 . 1 . Kinetic . | . . . . . . . . . . . . Secondary . | . . . . . . . . . . . . Self-Inflicted Damage 238 | . . . . . . 116 . . . 122 . Shots 6 | . . . . . . 4 . . . 2 . Rammed . | . . . . . . . . . . . . Targets Rammed . | . . . . . . . . . . . . Kicked . | . . . . . . . . . . . . Crushed . | . . . . . . . . . . . . Highest Temperature 292 | . 133 13 24 . . . . 292 159 272 8 Average Temperature 75 | . 17 11 5 . . . . 149 97 84 4 Received Heat Transfer 1231 | . 318 78 186 . . . 54 . . 144 451 Siege Activations . | . . . . . . . . . . . . Martial Activations . | . . . . . . . . . . . . Shielding Activations . | . . . . . . . . . . . . Robots Disrupted . | . . . . . . . . . . . . Combat Hostiles . | . . . . . . . . . . . . Robots Corrupted 6 | . . . . . . . 2 3 . 1 . Combat Hostiles . | . . . . . . . . . . . . Parts Fried 12 | . . . . . . . 8 3 . 1 . Impact Corruptions 20 | . . . . . . . 8 11 . 1 . Robots Melted . | . . . . . . . . . . . . Combat Hostiles . | . . . . . . . . . . . . Parts Melted . | . . . . . . . . . . . . Heat Transferred 422 | . . . 222 . . . . . . 200 . Parts Sabotaged . | . . . . . . . . . . . . Parts Stolen . | . . . . . . . . . . . . Parts Stripped . | . . . . . . . . . . . . Power Chain Reactions . | . . . . . . . . . . . . Alert | -11 -10 -10 -9 -9 -9 -8 -8 -7 -7 -7 -6 ------- Run | Yrd Mat Min Mat Min Exi Min Mat Fac Was Fac Fac Maximum Alert Level . | . . . . . . . . . . . . Low Security (%) 100 | 100 100 100 100 100 . 100 100 100 100 100 100 Level 1 . | . . . . . . . . . . . . Level 2 . | . . . . . . . . . . . . Level 3 . | . . . . . . . . . . . . Level 4 . | . . . . . . . . . . . . Level 5 . | . . . . . . . . . . . . High Security . | . . . . . . . . . . . . Max Security . | . . . . . . . . . . . . Peak Influence 181 | . 181 40 118 117 . 152 162 73 23 127 78 Initial 73 | . . 40 11 28 . . 47 73 8 . 60 Average 36 | . 61 40 32 56 . 119 33 16 8 23 33 Influence Increases 2211 | . 526 . 252 109 . 179 263 212 15 587 68 Destroy 0b10 Robot/C 760 | . 320 . 160 80 . 120 . . . 80 . Destroy 0b10 Robot/NC 145 | . 30 . 10 . . . 20 20 . 50 15 Destroy Leader 158 | . 62 . 32 10 . 20 . 4 . 30 . Allied During Kill 5 | . . . . 5 . . . . . . . Successful Hack 213 | . . . 16 . . . 15 59 . 80 43 Disable Machine 75 | . . . . . . . . . . 75 . Destroy Structure 225 | . 24 . 19 14 . 39 18 24 . 77 10 Partial Spotted 105 | . . . . . . . 15 30 15 45 . Lose Combat Pursuer 525 | . 90 . 15 . . . 195 75 . 150 . Influence Decreases 2211 | . 420 76 209 175 7 57 223 351 38 463 192 Entered New Map 380 | . . 66 19 45 7 . 75 89 15 . 64 Time Decay 1563 | . 380 . 165 120 . 30 148 244 23 329 124 Lost Part 155 | . 40 10 25 10 . 27 . 9 . 30 4 Purge Threat 113 | . . . . . . . . 9 . 104 . Squads Dispatched 29 | . 3 . 1 . . . 2 10 . 10 3 Investigation 12 | . 1 . . . . . 1 5 . 5 . Extermination 10 | . . . . . . . . 4 . 5 1 Reinforcement 7 | . 2 . 1 . . . 1 1 . . 2 Assault . | . . . . . . . . . . . . Garrison . | . . . . . . . . . . . . Intercept . | . . . . . . . . . . . . Searches Triggered . | . . . . . . . . . . . . Construction Impeded . | . . . . . . . . . . . . Haulers Reinforced . | . . . . . . . . . . . . Active Scanning Responses . | . . . . . . . . . . . . Cargo Convoy Interrupts . | . . . . . . . . . . . . Stealth | -11 -10 -10 -9 -9 -9 -8 -8 -7 -7 -7 -6 --------- Run | Yrd Mat Min Mat Min Exi Min Mat Fac Was Fac Fac Distress Signals 12 | . 5 . 2 . . . 4 1 . . . Communications Jammed . | . . . . . . . . . . . . Distress Signals . | . . . . . . . . . . . . Times Spotted 136 | . 41 2 17 4 . 5 19 7 6 29 6 Peak Tracking Total 8 | . 5 2 6 4 . 3 8 3 6 8 5 Tactical Retreats 25 | . 8 . 1 . . . 4 4 . 8 . ECM-based Alert Blocks 7 | . . . . . . . . . . 7 . Traps | -11 -10 -10 -9 -9 -9 -8 -8 -7 -7 -7 -6 ------- Run | Yrd Mat Min Mat Min Exi Min Mat Fac Was Fac Fac Traps Triggered 26 | . 8 . . . . . . 3 . 10 5 Indirectly . | . . . . . . . . . . . . Trap Hack Attempts . | . . . . . . . . . . . . Triggered . | . . . . . . . . . . . . Disarmed . | . . . . . . . . . . . . Reprogrammed . | . . . . . . . . . . . . Reused . | . . . . . . . . . . . . Traps Extracted . | . . . . . . . . . . . . Installed . | . . . . . . . . . . . . Triggered . | . . . . . . . . . . . . Machines | -11 -10 -10 -9 -9 -9 -8 -8 -7 -7 -7 -6 ---------- Run | Yrd Mat Min Mat Min Exi Min Mat Fac Was Fac Fac Machines Disabled 5 | . . . . . . . . . . 5 . Max in Single Turn 4 | . . . . . . . . . . 4 . Garrison Access 1 | . . . . . . . . 1 . . . Machines Repaired . | . . . . . . . . . . . . Machines Dismantled . | . . . . . . . . . . . . Machines Sabotaged . | . . . . . . . . . . . . Overloaded Fab Kills . | . . . . . . . . . . . . Hacking | -11 -10 -10 -9 -9 -9 -8 -8 -7 -7 -7 -6 --------- Run | Yrd Mat Min Mat Min Exi Min Mat Fac Was Fac Fac Machines Accessed 50 | . 2 . 3 . 2 . 4 14 . 20 5 Terminals 33 | . 1 . 3 . . . 4 10 . 11 4 Fabricators 1 | . . . . . . . . . . 1 . Repair Stations 4 | . . . . . . . . 1 . 3 . Recycling Units 3 | . 1 . . . . . . 1 . 1 . Scanalyzers 6 | . . . . . . . . 1 . 4 1 Garrison Access 1 | . . . . . . . . 1 . . . Total Hacks 147 | . 3 . 8 . 7 . 10 48 . 60 11 Successful 89 | . 2 . 6 . 7 . 5 34 . 30 5 Failed 57 | . 1 . 2 . . . 5 13 . 30 6 Catastrophic 8 | . 1 . . . . . . 1 . 6 . Database Lockouts 1 | . . . . . . . . 1 . . . Manual 94 | . 2 . 7 . 1 . 8 31 . 36 9 Terminals 96 | . 2 . 8 . . . 10 31 . 36 9 Fabricators 1 | . . . . . . . . . . 1 . Repair Stations 14 | . . . . . . . . 4 . 10 . Recycling Units 4 | . 1 . . . . . . 1 . 2 . Scanalyzers 23 | . . . . . . . . 10 . 11 2 Garrison Access 2 | . . . . . . . . 2 . . . Terminal Hacks 27 | . . . 2 . 7 . . 10 . 7 1 Record 6 | . . . . . 6 . . . . . . Part Schematic 1 | . . . . . . . . . . 1 . Level Access Points 2 | . . . . . . . . 1 . 1 . Branch Access Points 2 | . . . 1 . . . . 1 . . . Terminal Index 3 | . . . . . . . . 1 . 1 1 Recycling Unit Index 1 | . . . . . . . . 1 . . . Scanalyzer Index 2 | . . . . . . . . 1 . 1 . Unreport Threat 5 | . . . . . . . . 2 . 3 . Locate Traps 2 | . . . . . . . . 2 . . . Hauler Manifests 1 | . . . . . . . . 1 . . . Zone Layout 1 | . . . 1 . . . . . . . . Proto ID Catalog 1 | . . . . . 1 . . . . . . Fabricator Hacks 1 | . . . . . . . . . . 1 . Build 1 | . . . . . . . . . . 1 . Repair Station Hacks 10 | . . . . . . . . 4 . 6 . Scan Component 5 | . . . . . . . . 2 . 3 . Repair 5 | . . . . . . . . 2 . 3 . Recycling Unit Hacks 3 | . 1 . . . . . . 1 . 1 . Report Inventory 3 | . 1 . . . . . . 1 . 1 . Scanalyzer 16 | . . . . . . . . 9 . 7 . Insert Component 5 | . . . . . . . . 2 . 3 . Analyze 6 | . . . . . . . . 4 . 2 . Retrieve Study 5 | . . . . . . . . 3 . 2 . Garrison Access Hacks 1 | . . . . . . . . 1 . . . Seal Access 1 | . . . . . . . . 1 . . . Unauthorized Hacks 31 | . 1 . 4 . . . 5 9 . 8 4 Terminals 30 | . 1 . 4 . . . 5 9 . 7 4 Botnet 27 | . . . 3 . . . 4 9 . 7 4 Operators 3 | . 1 . 1 . . . 1 . . . . Fabricators . | . . . . . . . . . . . . Repair Stations . | . . . . . . . . . . . . Recycling Units 1 | . . . . . . . . . . 1 . Recyclers 1 | . . . . . . . . . . 1 . Scanalyzers . | . . . . . . . . . . . . Garrison Access . | . . . . . . . . . . . . Data Cores Recovered . | . . . . . . . . . . . . Used . | . . . . . . . . . . . . Hacking Detections 44 | . 2 . 3 . . . 3 13 . 18 5 Full Trace Events 12 | . 1 . . . . . 1 5 . 5 . Feedback Events . | . . . . . . . . . . . . Feedback Blocked . | . . . . . . . . . . . . Robot Schematics Acquired . | . . . . . . . . . . . . Robots Built 2 | . . . . . . . . . . 2 . Authchips . | . . . . . . . . . . . . Time 58 | . . . . . . . . . . 58 . Total Robot Build Rating 6 | . . . . . . . . . . 6 . Part Schematics Acquired 5 | . . . . . . . . 2 . 3 . Parts Built . | . . . . . . . . . . . . Authchips . | . . . . . . . . . . . . Time . | . . . . . . . . . . . . Total Part Build Rating . | . . . . . . . . . . . . Part Studies Acquired 5 | . . . . . . . . 3 . 2 . Parts Repaired 5 | . . . . . . . . 2 . 3 . Time 236 | . . . . . . . . 76 . 160 . Parts Recycled . | . . . . . . . . . . . . Recycled Matter . | . . . . . . . . . . . . Retrieved Matter . | . . . . . . . . . . . . Retrieved Components . | . . . . . . . . . . . . Parts Scanalyzed 4 | . . . . . . . . 2 . 2 . Part Schematics Acquired 4 | . . . . . . . . 2 . 2 . Parts Damaged . | . . . . . . . . . . . . Bothacking | -11 -10 -10 -9 -9 -9 -8 -8 -7 -7 -7 -6 ------------ Run | Yrd Mat Min Mat Min Exi Min Mat Fac Was Fac Fac Used RIF Installer . | . . . . . . . . . . . . Robots Hacked 4 | . . . . . 4 . . . . . . Non-combat 3 | . . . . . 3 . . . . . . Combat 1 | . . . . . 1 . . . . . . Robot Hacks Applied 5 | . . . . . 5 . . . . . . parse_system 5 | . . . . . 5 . . . . . . Relay Couplers Released . | . . . . . . . . . . . . Fabnet Peak Effective % . | . . . . . . . . . . . . Robots Rewired . | . . . . . . . . . . . . Allies Hacked . | . . . . . . . . . . . . Hacks Repelled . | . . . . . . . . . . . . Allies | -11 -10 -10 -9 -9 -9 -8 -8 -7 -7 -7 -6 -------- Run | Yrd Mat Min Mat Min Exi Min Mat Fac Was Fac Fac Total Allies 3 | . . . . 1 . . . . . 2 . Largest Group 2 | . . . . 1 . . . . . 2 . Highest-Rated Group 31 | . . . . 31 . . . . . 26 . Highest-Rated Ally 31 | . . . . 31 . . . . . 13 . Total Orders . | . . . . . . . . . . . . Ally Attacks . | . . . . . . . . . . . . Total Damage . | . . . . . . . . . . . . Kills . | . . . . . . . . . . . . Allies Corrupted . | . . . . . . . . . . . . Allies Melted . | . . . . . . . . . . . . Intel | -11 -10 -10 -9 -9 -9 -8 -8 -7 -7 -7 -6 ------- Run | Yrd Mat Min Mat Min Exi Min Mat Fac Was Fac Fac Active Infowar (turns) 1681 | . . . . 114 337 72 333 452 . 373 . Sensors 531 | . . . . 114 337 72 8 . . . . Traps 776 | . . . . . . . 325 451 . . . ECM 374 | . . . . . . . . 1 . 373 . Robot Analysis Total . | . . . . . . . . . . . . Derelict Logs Recovered 1 | . . . . 1 . . . . . . . Drone Launches . | . . . . . . . . . . . . Drone Recoveries . | . . . . . . . . . . . . Exploration | -11 -10 -10 -9 -9 -9 -8 -8 -7 -7 -7 -6 ------------- Run | Yrd Mat Min Mat Min Exi Min Mat Fac Was Fac Fac Turns Passed 5885 | 84 1405 10 601 255 337 72 430 751 80 1532 328 Spaces Moved 7535 | 47 652 6 278 202 273 29 696 1866 264 2889 333 Core 61 | 6 3 . . . . . . . . 28 24 Treads 281 | 41 240 . . . . . . . . . . Legs 1197 | . 409 6 278 202 273 29 . . . . . Wheels . | . . . . . . . . . . . . Hover 153 | . . . . . . . . . . 1 152 Flight 5843 | . . . . . . . 696 1866 264 2860 157 Fastest Speed 19 | 50 160 190 120 120 120 190 27 25 19 19 34 Average Speed 51 | 150 179 190 132 120 120 190 30 26 24 24 46 Slowest Speed 350 | 160 350 190 190 120 120 190 31 27 106 170 100 Overloaded Moves 39 | . . . . . . . . . . 39 . Propulsion Burnouts . | . . . . . . . . . . . . Robots Hopped 1 | . . . . . . . 1 . . . . Potential Cave-ins 1 | . . . 1 . . . . . . . . Cave-ins Triggered . | . . . . . . . . . . . . Exploration Rate (%) 40 | 4 82 7 29 44 64 16 48 49 85 53 7 Regions Visited 11 Branch Regions 4 Pre-discovered Areas 1 | . . . . . 1 . . . . . . Known Exits Taken 2 | . . . 1 . . . . . . 1 . Unknown Exits Taken 7 | 1 1 1 . 1 1 1 1 . . . . Scrap Searched 1 | . . . . 1 . . . . . . . Spaces Dug 87 | . . . 5 . . . 18 24 . 30 10 Terrain Destroyed 244 | . 28 . 27 14 . 43 18 24 . 80 10 Melee 82 | . . . . . . . 18 24 . 30 10 Projectile . | . . . . . . . . . . . . AOE 162 | . 28 . 27 14 . 43 . . . 50 . Terrain Rammed . | . . . . . . . . . . . . Walls Destroyed . | . . . . . . . . . . . . Machines Disabled . | . . . . . . . . . . . . Actions | -11 -10 -10 -9 -9 -9 -8 -8 -7 -7 -7 -6 --------- Run | Yrd Mat Min Mat Min Exi Min Mat Fac Was Fac Fac Total 9154 | 58 778 5 439 211 280 39 883 2079 278 3629 475 Wait 1054 | . 31 . 102 3 1 . 127 148 9 555 78 Move 7523 | 46 651 5 277 201 272 28 693 1866 263 2888 333 Hop 1 | . . . . . . . 1 . . . . Pick Up 59 | 4 17 . 3 3 1 2 9 5 1 13 1 Fast Attach 49 | 6 12 . 3 2 . . 1 4 2 10 9 Attach 36 | 1 4 . 7 . 1 2 10 2 1 6 2 Detach 6 | 1 . . 1 . . . . . 1 2 1 Swap 22 | . 4 . 2 . . . 5 2 . 9 . Drop 48 | . 4 . 2 . . . 14 5 1 20 2 Fire 108 | . 55 . 42 2 . 7 . . . 2 . Melee 133 | . . . . . 5 . 23 32 . 54 19 Ram . | . . . . . . . . . . . . Kick . | . . . . . . . . . . . . Crush . | . . . . . . . . . . . . Escape Stasis 115 | . . . . . . . . 15 . 70 30 Rewire . | . . . . . . . . . . . . Trap . | . . . . . . . . . . . . Miscellaneous . | . . . . . . . . . . . . Route ------- -11/Scrapyard -10/Materials (discovered 5 exits: *Mat x2 / [*Min x2] / [*Sub]) -10/Mines -9/Materials (discovered 4 exits: *Min x2 / Sto x2) -9/Mines (discovered 2 exits: *Mat / *Exi) -9/Exiles -8/Mines -8/Materials -7/Factory (discovered 6 exits: *Fac x4 / *Low x2) -7/Waste -7/Factory (discovered 4 exits: *Fac x4) -6/Factory History --------- Turn | Location | Event 5 | -11/Scrapyard | Discovered new exit (range 15) 85 | -11/Scrapyard | Entered Materials 319 | -10/Materials | Build established: Mutant 447 | -10/Materials | Discovered new exit (range 9) 707 | -10/Materials | Discovered new exit (range 16) 894 | -10/Materials | Discovered new exit (range 10) 985 | -10/Materials | Derelicts attacked the area 1039 | -10/Materials | Core integrity fell below 50% 1083 | -10/Materials | Lost 3 parts (1p1u1w) 1348 | -10/Materials | Discovered new exit (range 14) 1462 | -10/Materials | Discovered new exit (range 10) 1490 | -10/Materials | Entered Mines 1490 | -10/Mines | Discovered new exit (range 6) 1500 | -10/Mines | Entered Materials 1500 | -9/Materials | Evolved 2 slots: Propulsion x1, Utility x1 1675 | -9/Materials | Identified exit to Mines 1675 | -9/Materials | Identified exit to Storage 1885 | -9/Materials | Lost 3 parts (2n1w) 2101 | -9/Materials | Entered Mines 2104 | -9/Mines | Received a Mining Laser from a helpful Derelict 2133 | -9/Mines | Discovered new exit (range 11) 2205 | -9/Mines | Learned Materials interactive machine intel 2240 | -9/Mines | Found a damaged Exp. Sensor Array with a note attached 2242 | -9/Mines | Found Prototype Device 2242 | -9/Mines | Identified Exp. Sensor Array 2347 | -9/Mines | Deemed a non-threat by the Exiles lab entrance 2348 | -9/Mines | Discovered new exit (range 5) 2356 | -9/Mines | Entered Exiles 2356 | -9/Exiles | Accompanied by 1 ally 2386 | -9/Exiles | Met 8R-AWN 2421 | -9/Exiles | Met EX-HEX 2429 | -9/Exiles | Build established: Scavenger-Mutant 2455 | -9/Exiles | Met EX-BIN 2472 | -9/Exiles | Aligned with FarCom system 2474 | -9/Exiles | Given EX-Vault access code 2501 | -9/Exiles | Opened EX-Vault 2513 | -9/Exiles | Found Chronowheel 2537 | -9/Exiles | Warned to stay clear of 0b10 Research branches 2580 | -9/Exiles | Met EX-DEC 2626 | -9/Exiles | Learned location of Zion (-6) 2679 | -9/Exiles | Discovered new exit (range 14) 2693 | -9/Exiles | Left Exiles lab with Chronowheel 2693 | -9/Exiles | Entered Mines 2733 | -8/Mines | Lost 4 parts (2n2w) 2757 | -8/Mines | Discovered new exit (range 5) 2765 | -8/Mines | Entered Materials 2765 | -8/Materials | Evolved 2 slots: Propulsion x2 2766 | -8/Materials | Loaded intel: 19 interactive machine locations 3081 | -8/Materials | Build established: Scavenger-Sprinter 3177 | -8/Materials | Discovered new exit (range 15) 3195 | -8/Materials | Entered Factory 3195 | -7/Factory | Evolved 2 slots: Propulsion x2 3281 | -7/Factory | Repaired System Shield 3320 | -7/Factory | Repaired Lgt. Deuterium Engine 3598 | -7/Factory | Central database locked down 3650 | -7/Factory | Identified exit to Factory 3723 | -7/Factory | Identified exit to Lower Caves 3946 | -7/Factory | Sucked down chute 3946 | -7/Factory | Entered Waste 3950 | -7/Waste | Spotted C-40 Crusher 3956 | -7/Waste | Discovered new exit (range 16) 3957 | -7/Waste | Spotted C-40 Crusher 3961 | -7/Waste | Spotted C-40 Crusher 3962 | -7/Waste | Spotted C-40 Crusher 3978 | -7/Waste | Spotted C-40 Crusher 3987 | -7/Waste | Spotted C-40 Crusher 4012 | -7/Waste | Crushed by Compactor (1 part destroyed, 1 dropped) 4015 | -7/Waste | Crushed by Compactor (1 part destroyed, 1 dropped) 4026 | -7/Waste | Entered Factory 4046 | -7/Factory | Lost 3 parts (2n1w) 4183 | -7/Factory | Repaired Broken Adv. Datajack 4229 | -7/Factory | Repaired Imp. Deuterium Engine 4468 | -7/Factory | Repaired Imp. VTOL Module 4613 | -7/Factory | Fabricated W-25 Informer (x2) 5558 | -7/Factory | Entered another Factory area 5558 | -6/Factory | Evolved 2 slots: Power x1, Utility x1 5570 | -6/Factory | Lost 6 parts (1p4n1w) 5798 | -6/Factory | Build established: Mutant 5877 | -6/Factory | Core integrity fell below 50% 5883 | -6/Factory | Core integrity fell below 20% 5886 | -6/Factory | Destroyed by G-50 Soldier with Heavy Laser Last Messages --------------- 05848_ U-05 Engineer lays Concrete. 05852_ Lgt. Fission Core destroyed. 05855_ U-05 Engineer builds a Wall. 05856_ Stasis Canceller destroyed. 05856_ Critical hit (Burn: +50). 05861_ U-05 Engineer builds a Wall. 05864_ Imp. Gravmag System destroyed. 05865_ Aerolev Unit destroyed. 05865_ U-05 Engineer builds a Wall. 05867_ ECM Suite destroyed. 05869_ Adv. Datajack destroyed. 05872_ U-05 Engineer destroyed. 05872_ P-60 Hacker resets G-50 Soldier, system corruption cleaned. 05872_ U-05 Engineer builds a Wall. 05873_ Spear destroyed. 05874_ ALERT: Suspicious intruders detected, dispatching Cutter reinforcements to area. 05876_ P-60 Hacker resets G-50 Soldier, system corruption cleaned. 05878_ Cld. VTOL Module destroyed. 05879_ Critical hit (Burn: +37). Map ----- +----------------------------------------------------+ | ?????????????????????????????????????????????????? | | ?????????????????????????????????????????????????? | | ?????????????????????????????????????????????????? | | ?????????????????????????????????????????????????? | | ?????????????????????????????????????????????????? | | ?????????????????????????????????????????????????? | | ?????????????????????????????????????????????????? | | ?????????????????????????????????????????????????? | | ?????????????????????????????????????????????????? | | ?????????????????????????????????????????????????? | | ?????????????????????????????????????????? #?????? | | ????????????????????????????????????????? #?????? | | ???????????????????????????????????????? #?????? | | ???????????????????????????????????????# ##????? | | ?????????????????????????????????????? ?????? | | ???????????????????????????###??###### ??????? | | ??????????????????????########### ????????? | | ??????????????????????## !! # ?H???????? | | ??????????????????????## !! # ???????????? | | ???????????????????????# # #????????????? | | ???????????????????????# * # #????????????? | | ???????????????????????# u + #????????????? | | ??????????????????????##! p # ^#????????????? | | ??????????????????????##% gg # #????????????? | | ??????????????????????##| g # #????????????? | | ???????????????????????# @ g # #????????????? | | ???????????????????????######+### #????????????? | | ????????????????????????###?# #?# #????????????? | | ????????????????????????????# #?# #????????????? | | ????????????????????????????# #?# #????????????? | | ????????????????????????????# #?# #????????????? | | ????????????????????????????# #?# #????????????? | | ????????????????????????????? ??# #????????????? | | ????????????????????????????? ??# #????????????? | | ????????????????????????????#???# #????????????? | | ????????????????????????????# ??# #????????????? | | ???????????????????????????## ??# #????????????? | | ???????????????????????????? ??# #????????????? | | ????????????????????????????# ??# #?????????#""" | | ????????????????????????????# ### ##????????#""" | | ????????????????????????????# ##????????#""" | | ????????????????????????????# ##????????#""" | | ????????????????????????????# !!! #?????????#""" | | ????????????????????????????# !! ##????????? | | ????????????????????????????# !! ############+ | | ???????????????????????###### | | ???????????????????????+ | | ???????????????????????######### | | ???????????????????????????????# ############+ | | ????????????????????????????######+#####????# | +----------------------------------------------------+ Best States ------------- Heat Dissipation 41 Energy Generation 23 Energy Capacity 290 Matter Stores 300 Matter Capacity 300 Sight Range 16 Robot Scan Range 20 Terrain Scan Density 10 ECM Strength 1 Corruption Block 8 Armor Coverage 150 Evasion (%) 65 Recoil Reduction 2 Offensive Hacking 10 Defensive Hacking 10 Item Schematics ----------------- Hacking Suite | -7/Factory | Scanalyzed System Shield | -7/Factory | Scanalyzed System Restoration Module | -7/Factory | Scanalyzed Cld. VTOL Module | -7/Factory | Scanalyzed Imp. Hacking Suite | -7/Factory | Hacked Robot Schematics ------------------ None Fabricated ------------ W-25 Informer | x2 | -7/Factory | Preloaded Repaired ---------- System Shield | 20% | -7/Factory Lgt. Deuterium Engine | 70% | -7/Factory Adv. Datajack | 6% | -7/Factory | Broken Imp. Deuterium Engine | 50% | -7/Factory Imp. VTOL Module | 70% | -7/Factory Studied --------- Flight Unit | -7/Factory | Hacked VTOL Module | -7/Factory | Hacked Grenade Launcher | -7/Factory | Hacked Cesium-ion Thruster | -7/Factory | Hacked Imp. Deuterium Engine | -7/Factory | Hacked Alien Tech Used ----------------- None Achievements -------------- Ghost 'Em My Command Is Your Wish Watch This! Challenges ------------ None Game ------ Seed GrapheneTeslaMicrothruster Manual? 0 Play Time 02:01:27 Cumulative 32.2 hours Start 2025.10.31 @ 19:58:48 End 2025.11.02 @ 22:05:31 Sessions 5 Manual Loads 0 Difficulty Rogue Special Mode None Game No. 25 Rogue 25 Adventurer 0 Explorer 0 Win Type - Total 0 Types 0/0/0/0/0/0/0/0/0/0 Lore% 10 Gallery% 25 Achievement% 19 Wizard Run 0 Options --------- Layout 0 ASCII 0 Keyboard 0 Movement Mouse Keybinds 1 Fullscreen 2 Font 24/Smallcaps Map View 76x50 Zoom Use 0% Tactical HUD 1 Map Filters NONE Filters NONE Steam 1 RUN: ea1ea186-8677-4695-b16e-a2c481319916